bitfinex-derivatives/quotes_ETHF0:USTF0_20250726
["timestamp","ask_amount","ask_price","bid_price","bid_amount"]
[1753518499979,0.9041,3763.7,3763.6,3.73266]
[1753518500781,2.6534,3764.0,3763.9,3.73262]
[1753518501480,2.2489,3764.0,3763.9,3.73262]
[1753518501781,0.53118,3764.2,3764.1,0.53119]
[1753518501986,2.6534,3764.5,3764.4,3.2014]
[1753518502186,3.2635,3764.5,3764.4,3.73255]
[1753518502382,3.40481152,3764.5,3764.4,3.73255]
[1753518502584,0.018,3765.3,3764.9,3.2014]
[1753518502786,3.2635,3765.1,3765.0,5.02166]
[1753518502990,3.2635,3765.1,3765.0,4.4906]
[1753518503291,3.2635,3764.7,3764.6,6.94031]
[1753518503687,3.2635,3764.7,3764.6,6.4092]
[1753518504193,3.7946,3764.7,3764.6,4.1005]
[1753518504488,3.2635,3765.0,3764.9,3.2014]
[1753518505278,3.2635,3765.0,3764.9,3.73248]
[1753518505279,1.3086,3765.0,3764.9,3.73248]
[1753518505485,2.541,3765.3,3765.2,3.2014]
[1753518505685,1.59875449,3765.3,3765.2,3.2014]
[1753518505892,1.3266,3765.3,3765.2,3.2014]
[1753518506091,3.2815,3765.3,3765.2,3.2014]
[1753518506292,3.81252,3765.3,3765.2,0.7892]
[1753518506590,3.81252,3765.3,3764.8,0.53108]
[1753518506591,3.2635,3764.9,3764.8,3.2014]
[1753518506796,3.2635,3764.9,3764.8,3.73249]
[1753518507494,3.2635,3764.9,3764.8,3.2014]
[1753518507689,3.2635,3764.9,3764.8,0.8927]
[1753518508596,3.79458,3764.9,3764.8,0.8927]
[1753518508991,3.7946,3764.7,3764.6,0.8927]
[1753518509191,3.2635,3764.7,3764.6,4.1005]
[1753518509386,3.7946,3764.7,3764.6,4.1005]
[1753518510097,0.3824,3764.7,3764.6,7.02862]
[1753518510595,0.018,3765.3,3764.8,3.84268]
[1753518510596,3.2534,3764.9,3764.8,3.84268]
[1753518510994,2.4937,3764.9,3764.8,3.84268]
[1753518511195,3.2534,3764.9,3764.8,3.84268]
[1753518511797,3.2534,3764.9,3764.8,3.3116]
[1753518513990,3.78448,3764.9,3764.8,3.3116]
[1753518514193,3.2534,3764.9,3764.8,3.3116]
[1753518514396,1.3472,3764.9,3764.8,3.3116]
[1753518514593,3.2534,3764.9,3764.8,3.84269]
[1753518516400,3.25895094,3764.9,3764.8,3.84269]
[1753518516898,3.25895094,3764.9,3764.8,3.3116]
[1753518517101,3.79003094,3764.9,3764.8,3.3116]
[1753518517298,3.79003094,3764.9,3764.8,3.84269]
[1753518517492,3.79003094,3764.9,3764.8,3.3116]
[1753518517698,3.25895094,3764.9,3764.8,3.3116]
[1753518518099,3.79003094,3764.9,3764.8,3.3116]
[1753518518302,3.7845,3764.7,3764.6,4.1105]
[1753518519195,3.7845,3764.7,3764.6,6.5194]
[1753518519702,3.7845,3764.7,3764.6,5.3108]
[1753518520803,3.7845,3764.7,3764.6,4.1105]
[1753518521200,3.7845,3764.7,3764.6,3.2078]
[1753518522103,9.58117,3764.7,3764.2,3.2078]
[1753518522308,3.78456,3764.3,3764.2,3.2078]
[1753518522905,1.32777,3764.7,3763.9,2.0069]
[1753518522906,3.7846,3764.0,3763.9,2.9096]
[1753518523400,3.7846,3764.0,3763.9,0.9027]
[1753518523610,3.7846,3764.0,3763.9,1.701]
[1753518524306,1.87842,3763.9,3763.8,3.2078]
[1753518524508,3.78462,3763.9,3763.8,3.2078]
[1753518526105,2.317,3763.9,3763.4,3.2078]
[1753518526410,3.2534,3763.1,3763.0,6.5194]
[1753518526610,3.78473,3763.1,3763.0,6.5194]
[1753518528308,3.78477,3762.8,3762.7,1.9068]
[1753518528511,3.78479,3762.7,3762.6,3.2078]
[1753518531212,3.78479,3762.7,3762.3,1.2086]
[1753518531213,1.87863,3762.4,3762.3,2.1113]
[1753518531409,3.78483,3762.4,3762.3,3.3116]
[1753518531814,3.78483,3762.4,3762.3,0.9027]
[1753518532510,1.87864,3762.3,3762.2,3.2078]
[1753518532712,1.8787,3761.9,3761.8,4.70921172]
[1753518532915,1.9062,3762.2,3761.9,2.0069]
[1753518533209,1.9062,3762.2,3761.8,5.24071172]
[1753518533210,0.53146,3762.2,3762.1,3.3116]
[1753518533416,3.2534,3762.5,3762.4,1.3047]
[1753518533715,3.78481,3762.5,3762.4,3.3116]
[1753518535110,0.4108,3762.5,3762.4,3.84303]
[1753518535316,3.2078,3763.0,3762.7,1.3047]
[1753518535517,6.99254,3763.0,3762.9,1.3047]
[1753518535816,6.99254,3763.0,3762.9,3.3116]
[1753518539217,6.4612,3763.0,3762.9,3.3116]
[1753518539419,5.932,3763.0,3762.9,3.3116]
[1753518539719,5.932,3763.0,3762.9,3.84296]
[1753518540216,5.932,3763.0,3762.9,3.3116]
[1753518540720,6.4612,3763.0,3762.9,3.3116]
[1753518541126,1.87049,3763.4,3763.3,1.3272]
[1753518541420,3.87729,3763.4,3763.3,3.2434]
[1753518541617,3.346,3763.4,3763.3,3.2434]
[1753518541816,3.346,3763.4,3763.3,3.7747]
[1753518542115,1.3392,3763.4,3763.3,3.7747]
[1753518542312,3.346,3763.4,3763.3,3.7747]
[1753518543121,3.346,3763.4,3763.3,3.2434]
[1753518543618,3.346,3763.4,3763.3,3.7747]
[1753518543818,3.346,3763.4,3763.3,3.2434]
[1753518544419,1.4323,3763.3,3762.8,5.124]
[1753518544618,3.346,3762.9,3762.7,0.53138]
[1753518544820,3.2078,3763.7,3762.7,0.53138]
[1753518544821,2.9348,3762.8,3762.7,3.77479]
[1753518545020,3.87734,3763.1,3763.0,2.6848]
[1753518545220,3.346,3763.1,3763.0,3.2434]
[1753518545418,3.87733,3763.1,3763.0,3.2434]
[1753518545821,3.346,3763.1,3763.0,3.2434]
[1753518546221,3.2078,3763.7,3762.9,3.73915]
[1753518546222,2.8133,3763.3,3763.2,3.77471]
[1753518546423,1.9137,3763.3,3763.2,3.77471]
[1753518547323,2.5235,3763.3,3763.2,3.77471]
[1753518547729,3.346,3763.3,3763.2,3.77471]
[1753518547923,3.346,3763.3,3763.2,3.2434]
[1753518548115,3.346,3763.3,3763.2,3.77471]
[1753518548321,5.07824,3763.7,3763.6,1.6739]
[1753518548723,5.07824,3763.7,3763.6,0.396]
[1753518548926,1.87047,3763.5,3763.4,2.0835]
[1753518549121,3.87727,3763.5,3763.4,2.8368]
[1753518549623,3.87727,3763.5,3763.4,3.2434]
[1753518550826,3.87727,3763.5,3763.4,0.9206]
[1753518551224,3.87727,3763.5,3763.4,0.396]
[1753518551620,3.87727,3763.5,3763.4,3.2434]
[1753518552317,3.346,3763.3,3763.2,3.2434]
[1753518552728,3.8773,3763.3,3763.2,3.2434]
[1753518552922,3.346,3763.6,3763.5,1.3272]
[1753518553226,3.346,3763.6,3763.5,3.2434]
[1753518553427,3.87726,3763.6,3763.5,3.2434]
[1753518554021,1.3392,3763.4,3762.9,3.73915]
[1753518554224,1.3392,3763.4,3763.0,1.9162]
[1753518554426,1.45934,3763.0,3762.9,3.6038]
[1753518554627,3.87734,3763.0,3762.9,3.6038]
[1753518555024,3.87734,3763.0,3762.9,4.1284]
[1753518555218,3.87734,3763.0,3762.9,6.0446]
[1753518555419,3.87734,3763.0,3762.9,6.4512]
[1753518555624,3.346,3763.0,3762.9,6.4512]
[1753518556326,3.87734,3763.0,3762.9,6.4512]
[1753518558031,3.346,3763.0,3762.9,6.4512]
[1753518558228,3.87734,3763.0,3762.9,6.4512]
[1753518558834,3.346,3763.0,3762.9,6.4512]
[1753518559131,3.87734,3763.0,3762.9,6.4512]
[1753518559333,3.346,3763.0,3762.9,6.4512]
[1753518560434,4.10764929,3763.0,3762.9,6.4512]
[1753518560633,4.63898929,3763.0,3762.9,6.4512]
[1753518561037,4.63898929,3763.0,3762.9,5.2883]
[1753518561225,0.53137,3762.8,3762.7,1.6739]
[1753518561431,3.87737,3762.8,3762.7,1.6739]
[1753518561734,4.10776196,3762.8,3762.7,1.6739]
[1753518561935,4.63913196,3762.8,3762.7,1.6739]
[1753518562236,4.63913196,3762.8,3762.7,2.2325]
[1753518562535,4.10776196,3762.8,3762.7,2.2325]
[1753518562737,4.10776196,3762.8,3762.7,2.8368]
[1753518562935,4.63913196,3762.8,3762.7,3.2434]
[1753518563136,4.10776196,3762.8,3762.7,3.2434]
[1753518563536,0.76176196,3762.8,3762.7,3.2434]
[1753518563730,1.87051,3763.3,3763.2,1.3272]
[1753518563929,1.87051,3763.3,3763.2,3.2434]
[1753518563930,4.6390838,3763.3,3763.2,3.2434]
[1753518564132,4.6390838,3763.3,3763.2,0.9206]
[1753518564331,3.87731,3763.2,3763.1,3.2078]
[1753518564534,3.87733,3763.1,3763.0,1.6739]
[1753518564833,3.87737,3762.8,3762.7,3.2434]
[1753518565033,4.1077738,3762.8,3762.7,3.2434]
[1753518565642,4.1077738,3762.8,3762.7,3.77479]
[1753518565935,1.43090652,3763.9,3763.6,1.3272]
[1753518566140,3.95440652,3764.1,3764.0,3.2434]
[1753518566330,4.71732131,3764.1,3764.0,3.2434]
[1753518566531,3.54082795,3764.1,3764.0,3.2434]
[1753518566935,3.28531198,3764.1,3764.0,3.2434]
[1753518567835,4.24870198,3764.1,3764.0,0.7533]
[1753518568532,3.71751198,3764.1,3764.0,0.7533]
[1753518569136,3.71751198,3764.1,3764.0,1.2779]
[1753518569341,3.71751198,3764.1,3764.0,1.6739]
[1753518569939,4.24870198,3764.1,3764.0,1.6739]
[1753518570140,1.2797,3763.9,3763.8,1.3125]
[1753518570446,3.64231198,3763.9,3763.8,1.3125]
[1753518571136,1.2797,3763.4,3763.3,2.9089]
[1753518571345,3.64231198,3763.4,3763.3,1.713]
[1753518571839,3.64231198,3763.4,3763.3,2.2443]
[1753518572442,3.64231198,3763.4,3763.3,3.8181]
[1753518573541,3.64231198,3763.4,3763.3,3.2868]
[1753518574244,3.64231198,3763.4,3763.3,3.8181]
[1753518574738,3.64231198,3763.4,3763.3,1.713]
[1753518575046,3.64231198,3763.4,3763.2,3.2078]
[1753518575047,2.4455,3763.0,3762.9,3.02605]
[1753518575240,3.20731198,3763.0,3762.9,3.02605]
[1753518575543,1.9238,3763.0,3762.9,3.81815]
[1753518575744,1.9238,3763.0,3762.9,3.2868]
[1753518576344,1.9238,3763.0,3762.9,3.81816]
[1753518576544,1.9238,3763.0,3762.9,3.2868]
[1753518576745,1.9238,3763.0,3762.9,3.81816]
[1753518577143,1.32801,3764.0,3762.8,3.2078]
[1753518577144,3.2078,3764.0,3762.8,3.2078]
[1753518577346,1.9238,3763.6,3763.5,3.2868]
[1753518577643,2.68113965,3763.6,3763.5,3.81807]
[1753518577946,3.63783965,3763.6,3763.5,1.3125]
[1753518578145,1.2893,3763.3,3763.2,1.713]
[1753518578348,3.63783965,3763.3,3763.2,1.713]
[1753518578647,0.75733965,3763.3,3763.2,3.81811]
[1753518581143,0.758,3763.8,3763.7,1.83004]
[1753518581345,2.66567253,3763.8,3763.7,1.83004]
[1753518581641,3.71860253,3763.8,3763.7,1.2988]
[1753518581850,4.15360253,3763.8,3763.7,3.2868]
[1753518583348,4.15360253,3763.8,3763.7,2.0909]
[1753518583549,4.15360253,3763.8,3763.7,1.713]
[1753518584243,1.2797,3763.7,3763.4,1.1959]
[1753518584444,2.02157253,3763.6,3763.5,1.713]
[1753518584845,2.02157253,3763.6,3763.5,2.9089]
[1753518585046,4.15363253,3763.6,3763.5,2.9089]
[1753518585248,3.62237253,3763.6,3763.5,2.9089]
[1753518585844,3.62237253,3763.6,3763.5,3.81807]
[1753518585845,0.74187253,3763.6,3763.5,3.81807]
[1753518586050,2.66567253,3763.6,3763.5,3.81807]
[1753518586445,2.66567253,3763.6,3763.5,7.02587]
[1753518587951,3.62237253,3763.6,3763.5,7.02587]
[1753518589545,3.62237253,3763.6,3763.5,6.4946]
[1753518590051,3.62237253,3763.6,3763.5,3.2868]
[1753518591052,3.62237253,3763.6,3763.5,3.81807]
[1753518591346,3.62237253,3763.6,3763.5,3.2868]
[1753518591546,3.62237253,3763.6,3763.5,1.713]
[1753518591547,4.15363253,3763.6,3763.5,1.713]
[1753518591748,3.41179,3763.4,3763.3,1.713]
[1753518591949,4.15366253,3763.4,3763.3,1.713]
[1753518593353,4.15366253,3763.4,3763.3,1.3125]
[1753518594552,4.15366253,3763.4,3763.3,1.713]
[1753518596454,4.15772823,3763.4,3763.3,1.713]
[1753518597456,4.15772823,3763.4,3763.3,2.9089]
[1753518598961,4.15772823,3763.4,3763.3,3.2868]
[1753518601967,4.15772823,3763.4,3763.3,1.713]
[1753518602466,4.15772823,3763.4,3763.3,1.3125]
[1753518602661,4.15772823,3763.4,3763.0,1.1561]
[1753518602867,1.80083,3763.1,3763.0,2.8104]
[1753518603067,4.06020253,3763.1,3763.0,2.8104]
[1753518604464,4.06020253,3763.1,3763.0,3.2055]
[1753518604961,4.06020253,3763.1,3763.0,1.6543]
[1753518605362,4.06020253,3763.1,3763.0,3.2055]
[1753518608070,0.74187253,3763.1,3763.0,3.2055]
[1753518608266,3.13480253,3763.1,3763.0,3.2055]
[1753518609166,0.74187253,3763.1,3763.0,3.2055]
[1753518609371,1.27722823,3763.4,3763.1,0.53132]
[1753518609573,0.5353557,3763.4,3763.3,3.2055]
[1753518609874,0.5353557,3763.4,3763.3,3.7368]
[1753518609875,0.77397253,3763.4,3763.3,3.7368]
[1753518610073,0.77397253,3763.4,3763.3,3.2055]
[1753518610276,2.05616253,3763.4,3763.3,3.2055]
[1753518610476,3.43342772,3763.4,3763.3,3.2055]
[1753518610776,3.16686253,3763.4,3763.3,3.2055]
[1753518610967,4.09226253,3763.4,3763.3,3.2055]
[1753518611777,4.09226253,3763.4,3763.3,1.6543]
[1753518611966,1.42623,3763.1,3763.0,2.0323]
[1753518612167,4.08823683,3763.1,3763.0,1.6543]
[1753518612774,4.08823683,3763.1,3763.0,2.8104]
[1753518612975,4.08823683,3763.1,3763.0,3.2055]
[1753518613475,4.37103171,3763.1,3763.0,3.2055]
[1753518613780,4.37103196,3763.1,3763.0,3.2055]
[1753518613978,4.37103196,3763.1,3763.0,0.7781]
[1753518614168,4.37103196,3763.1,3763.0,1.2722]
[1753518614374,4.37103196,3763.1,3763.0,1.6543]
[1753518614573,4.37103196,3763.1,3763.0,2.8104]
[1753518614875,4.37103196,3763.1,3763.0,3.2055]
[1753518615780,3.44563196,3763.1,3763.0,3.2055]
[1753518616075,0.76990683,3763.1,3763.0,3.2055]
[1753518616276,0.76990683,3763.1,3763.0,3.73684]
[1753518616482,0.76990683,3763.2,3763.0,3.73684]
[1753518616779,0.76990683,3763.2,3763.1,3.2055]
[1753518617177,0.76990683,3763.2,3763.1,3.73683]
[1753518617382,0.76990683,3763.2,3763.1,3.2055]
[1753518617583,0.76990683,3763.2,3763.1,3.73683]
[1753518617977,1.30120683,3763.3,3763.1,3.73683]
[1753518618177,0.76990683,3763.2,3763.1,3.73683]
[1753518618577,0.5313,3763.3,3763.2,1.2713]
[1753518618881,1.3115057,3763.3,3763.2,1.2713]
[1753518619073,1.3115057,3763.3,3763.2,3.2055]
[1753518619274,1.3115057,3763.3,3763.2,3.73681]
[1753518619671,0.7802057,3763.3,3763.2,3.73681]
[1753518621576,0.0040657,3763.4,3763.3,0.9264]
[1753518621780,0.0040657,3763.4,3763.3,3.7368]
[1753518622085,0.0040657,3763.4,3763.3,6.9446]
[1753518627387,2.39278,3764.2,3764.1,1.2713]
[1753518627584,3.56478585,3764.2,3764.1,3.2055]
[1753518627784,4.08338585,3764.2,3764.1,3.2055]
[1753518628186,4.08338585,3764.2,3764.1,2.8104]
[1753518629087,3.55220585,3764.2,3764.1,3.34159]
[1753518629787,3.16480585,3764.2,3764.1,3.73669]
[1753518630086,2.64620585,3764.2,3764.1,3.73669]
[1753518631489,0.78460585,3764.2,3764.1,6.94449]
[1753518631789,0.5592,3764.5,3764.4,1.80805]
[1753518631994,1.7628,3764.8,3764.7,3.7465]
[1753518632289,2.07478958,3764.8,3764.7,3.7465]
[1753518632482,2.63398958,3764.8,3764.7,3.7465]
[1753518632684,0.79188958,3764.8,3764.7,6.9543]
[1753518634993,0.5592,3765.1,3765.0,3.74646]
[1753518635283,2.09547487,3765.1,3765.0,3.74646]
[1753518635489,2.63307487,3765.1,3765.0,3.74646]
[1753518636589,0.79097487,3765.1,3765.0,3.74646]
[1753518636889,0.018,3765.3,3765.2,0.53103]
[1753518637093,1.8601,3765.3,3765.2,3.74643]
[1753518637392,1.19530525,3765.3,3765.2,3.74643]
[1753518637794,2.65070525,3765.3,3765.2,3.74643]
[1753518638697,1.8601,3765.3,3765.2,3.74643]
[1753518639184,2.7192,3765.3,3765.2,1.6645]
[1753518639586,3.25022,3765.3,3765.2,1.6645]
[1753518641596,3.23225,3765.1,3765.0,3.9896]
[1753518641793,2.7012,3764.8,3764.7,0.7818]
[1753518641995,3.23229,3764.8,3764.7,0.7818]
[1753518642192,3.23229,3764.8,3764.7,1.2922]
[1753518642396,2.7012,3764.8,3764.7,1.6645]
[1753518642597,2.7012,3764.8,3764.7,2.8212]
[1753518642894,2.7012,3764.8,3764.7,3.2154]
[1753518643096,0.7453,3765.2,3765.1,1.2769]
[1753518643289,0.018,3765.3,3765.2,3.74643]
[1753518645799,0.7633,3765.3,3765.2,3.74643]
[1753518646197,1.8601,3765.3,3765.2,3.74643]
[1753518646599,2.7192,3765.3,3765.2,3.2154]
[1753518646901,1.8601,3765.3,3765.2,3.74643]
[1753518647101,1.3225,3765.3,3765.2,3.74643]
[1753518647299,0.7633,3765.3,3765.2,3.74643]
[1753518647498,0.018,3765.3,3765.2,3.74643]
[1753518652105,1.8601,3765.3,3765.2,3.74643]
[1753518652304,5.0421,3765.9,3765.8,3.74635]
[1753518652608,5.83230251,3765.9,3765.8,3.74635]
[1753518652802,6.69140251,3765.9,3765.8,3.74635]
[1753518653404,3.99020251,3765.9,3765.8,3.74635]
[1753518653610,5.9012,3765.9,3765.8,3.74635]
[1753518654400,5.9012,3765.9,3765.8,1.6645]
[1753518654607,5.9012,3765.9,3765.8,1.31275]
[1753518654809,5.9012,3765.9,3765.8,2.19545]
[1753518655308,5.0421,3765.9,3765.8,3.74635]
[1753518656203,5.9012,3765.9,3765.8,3.74635]
[1753518656408,3.2,3765.9,3765.8,3.74635]
[1753518657216,3.5586,3765.9,3765.8,3.74635]
[1753518657417,3.9453,3765.9,3765.8,3.74635]
[1753518657613,5.0421,3765.9,3765.8,3.74635]
[1753518658011,2.7012,3766.5,3766.4,1.6645]
[1753518658211,3.49169189,3766.5,3766.4,3.2154]
[1753518658411,3.49169189,3766.5,3766.2,3.2078]
[1753518658616,2.63259189,3766.4,3766.3,3.74628]
[1753518658815,3.11249189,3766.4,3766.3,3.74628]
[1753518659013,3.49169189,3766.4,3766.3,3.74628]
[1753518659813,3.11249189,3766.4,3766.3,3.74628]
[1753518660316,2.63259189,3766.4,3766.3,3.74628]
[1753518661517,3.14199189,3766.4,3766.3,3.74628]
[1753518661718,3.53859189,3766.4,3766.3,3.74628]
[1753518661908,4.06945189,3766.4,3766.2,3.73869]
[1753518662114,3.59569189,3766.3,3766.2,3.9397]
[1753518662313,4.12657189,3766.3,3766.2,3.2078]
[1753518662817,3.19909189,3766.3,3766.2,6.87479]
[1753518663210,2.13569189,3766.3,3766.2,6.87479]
[1753518663408,1.18279189,3766.3,3766.2,6.87479]
[1753518663613,0.79049189,3766.3,3766.2,6.87479]
[1753518664212,1.57659189,3766.3,3766.2,6.87479]
[1753518664419,2.13569189,3766.3,3766.2,6.87479]
[1753518664820,2.68969189,3766.3,3766.2,6.87479]
[1753518665117,3.59569189,3766.3,3766.2,6.87479]
[1753518666120,3.19909189,3766.3,3766.2,6.87479]
[1753518667025,3.59569189,3766.3,3766.2,6.87479]
[1753518669316,0.79049189,3766.3,3766.2,6.87479]
[1753518669523,1.2315442,3767.2,3767.0,1.2845]
[1753518669723,3.6044,3767.6,3766.6,1.32708]
[1753518669724,2.72764932,3767.6,3767.5,1.81521]
[1753518669922,3.37863664,3767.6,3767.5,0.53071]
[1753518670223,1.2955,3767.3,3767.2,3.66685]
[1753518670420,0.7861,3767.3,3767.2,3.66685]
[1753518670615,0.3923,3767.3,3767.2,3.66685]
[1753518670919,1.2955,3767.3,3767.2,3.66685]
[1753518671122,1.6921,3767.3,3767.2,0.3992]
[1753518671325,1.2955,3767.2,3767.1,6.87466]
[1753518671528,0.7861,3767.2,3767.1,6.87466]
[1753518671726,1.3452,3767.2,3767.1,6.87466]
[1753518671922,2.8052,3767.2,3767.1,6.3439]
[1753518672125,2.8052,3767.2,3767.1,5.3983]
[1753518672327,2.8052,3767.2,3767.1,3.2078]
[1753518672524,3.33595,3767.2,3767.1,3.2078]
[1753518672828,2.8052,3767.2,3767.1,6.87466]
[1753518673023,2.8052,3767.2,3767.1,5.7737]
[1753518673327,3.33595,3767.2,3767.1,3.2078]
[1753518673928,1.5097,3766.7,3766.6,0.53084]
[1753518674124,1.2955,3766.7,3766.6,0.53084]
[1753518674329,1.2955,3766.7,3766.6,1.81224]
[1753518674621,3.33602,3766.7,3766.5,3.2078]
[1753518674827,1.82632,3766.7,3766.5,3.2078]
[1753518675024,2.8052,3766.6,3766.5,4.28815]
[1753518675331,2.8052,3766.6,3766.5,5.92915]
[1753518675529,2.8052,3766.6,3766.5,6.30455]
[1753518675928,2.8052,3766.6,3766.5,5.7737]
[1753518676137,2.8052,3766.6,3766.5,6.30455]
[1753518676527,2.2512,3766.6,3766.5,6.87475]
[1753518676826,2.2512,3766.6,3766.5,3.2078]
[1753518676827,2.8052,3766.6,3766.5,3.2078]
[1753518677725,3.33604,3766.6,3766.5,3.2078]
[1753518677926,3.2078,3767.1,3765.9,0.5702]
[1753518677927,1.2955,3766.3,3766.1,3.2078]
[1753518678130,2.8052,3766.2,3765.9,0.5495]
[1753518678330,2.2461,3766.0,3765.9,0.5495]
[1753518678529,2.8052,3766.0,3765.9,0.5495]
[1753518678832,3.33612,3766.0,3765.9,1.6806]
[1753518679021,0.53095,3765.8,3765.6,4.5099]
[1753518679227,3.33616,3765.7,3765.6,4.8884]
[1753518679529,3.33616,3765.7,3765.6,3.7573]
[1753518679725,3.33616,3765.7,3765.6,3.2078]
[1753518679930,3.33623,3765.3,3765.2,3.2078]
[1753518680727,2.8052,3765.3,3765.2,3.2078]
[1753518680934,3.33622,3765.3,3765.2,3.2078]
[1753518681229,3.33622,3765.3,3765.2,1.2814]
[1753518681426,3.33623,3765.3,3765.0,0.5702]
[1753518681627,2.8052,3765.2,3765.1,1.2814]
[1753518681829,2.8052,3765.2,3764.8,3.2078]
[1753518682035,3.33626,3765.0,3764.9,2.1905]
[1753518682229,1.82657,3764.9,3764.8,3.2078]
[1753518682430,3.33627,3764.9,3764.8,3.2078]
[1753518683831,3.3363,3764.7,3764.6,2.1905]
[1753518684137,1.82663,3764.5,3764.4,0.5495]
[1753518684438,3.33633,3764.5,3764.4,0.5495]
[1753518684635,2.8052,3764.1,3764.0,3.2078]
[1753518684834,2.8052,3764.1,3764.0,5.7737]
[1753518685134,3.33639,3764.1,3764.0,5.7737]
[1753518686336,3.33639,3764.1,3764.0,5.3983]
[1753518686545,0.4005,3764.4,3764.0,4.4923]
[1753518686838,1.696,3764.4,3764.3,1.2845]
[1753518687137,1.696,3764.4,3764.3,3.1361]
[1753518687337,2.22715,3764.4,3764.3,3.1361]
[1753518687636,2.56445,3764.4,3764.3,1.834]
[1753518687832,2.56445,3764.4,3764.3,0.5495]
[1753518688139,2.22715,3764.4,3764.3,2.5659]
[1753518688338,2.56445,3764.4,3764.3,0.5495]
[1753518688638,2.87055,3764.4,3764.3,0.5495]
[1753518689134,2.87055,3764.4,3764.3,2.5659]
[1753518689338,2.0021,3764.4,3764.3,2.5659]
[1753518689532,2.53325,3764.4,3764.3,3.1361]
[1753518690139,2.88175,3764.4,3764.3,2.5659]
[1753518692440,2.53325,3764.4,3764.3,3.1698]
[1753518693837,1.6016,3764.4,3764.3,3.70096]
[1753518694046,0.4154,3765.0,3764.6,3.82252]
[1753518694343,0.3173,3764.9,3764.8,1.2809]
[1753518694641,0.697,3764.9,3764.8,3.2914]
[1753518694834,1.5709,3764.9,3764.8,3.2914]
[1753518695035,2.10197,3764.9,3764.8,3.2914]
[1753518695238,2.51737,3764.9,3764.8,3.2914]
[1753518695637,2.10197,3764.9,3764.8,3.2914]
[1753518695838,1.5709,3764.9,3764.8,3.2914]
[1753518697144,2.10197,3764.9,3764.8,3.2914]
[1753518697839,3.28727425,3764.9,3764.8,3.2914]
[1753518698240,2.51737,3764.9,3764.8,3.2914]
[1753518699446,2.51737,3764.9,3764.8,2.6875]
[1753518699646,2.86587,3764.9,3764.8,2.6875]
[1753518700747,2.86587,3764.9,3764.8,3.2914]
[1753518702250,2.51737,3764.9,3764.8,3.2914]
[1753518702943,0.53105,3765.1,3765.0,2.4825]
[1753518703152,0.53105,3765.1,3765.0,3.2914]
[1753518703347,1.1124,3765.5,3765.4,2.3771]
[1753518703650,3.63643477,3765.5,3765.4,2.6875]
[1753518704746,3.28793477,3765.5,3765.4,2.6875]
[1753518704947,3.28793477,3765.5,3765.4,3.2914]
[1753518708154,3.63643477,3765.5,3765.4,0.5977]
[1753518708746,3.63643477,3765.5,3765.4,1.4066]
[1753518709059,2.86583,3765.2,3765.1,0.5977]
[1753518709251,6.84427477,3765.2,3765.1,0.5977]
[1753518709946,6.84427477,3765.2,3765.1,1.4066]
[1753518710847,2.10202,3764.6,3764.5,1.8848]
[1753518711051,3.3012193,3764.6,3764.5,1.8848]
[1753518711552,3.3012193,3764.6,3764.5,3.2914]
[1753518715955,3.6497193,3764.6,3764.5,2.6875]
[1753518716155,3.6497193,3764.6,3764.5,1.4066]
[1753518716753,3.6497193,3764.6,3764.5,3.2914]
[1753518717162,3.3012193,3764.6,3764.5,3.2914]
[1753518717753,3.6497193,3764.6,3764.5,2.6875]
[1753518717957,3.6497193,3764.6,3764.5,0.5977]
[1753518719551,7.11600614,3764.6,3764.5,0.5977]
[1753518719949,7.11600614,3764.6,3764.2,1.3813]
[1753518719950,1.0118,3764.5,3764.2,1.3813]
[1753518720158,2.46076,3764.3,3764.2,1.7782]
[1753518720349,3.2445593,3764.3,3764.2,1.7782]
[1753518720554,3.2445593,3764.3,3764.2,2.5686]
[1753518720756,3.2445593,3764.3,3764.2,3.1595]
[1753518722451,2.8569593,3764.3,3764.2,3.1595]
[1753518723257,3.2445593,3764.3,3764.2,3.1595]
[1753518723655,3.5722593,3764.3,3764.2,3.1595]
[1753518725662,3.2445593,3764.3,3764.2,3.1595]
[1753518728158,3.5722593,3764.3,3764.2,3.1595]
[1753518728962,3.5722593,3764.3,3764.2,2.6059]
[1753518729761,3.5722593,3764.3,3764.2,0.5909]
[1753518729967,3.83047735,3764.3,3764.2,0.5909]
[1753518730160,3.5722593,3764.3,3764.2,0.5909]
[1753518730357,3.83043676,3764.3,3764.2,0.5909]
[1753518731158,0.5312,3764.0,3763.9,0.7904]
[1753518731362,2.8569993,3764.0,3763.9,3.1595]
[1753518731571,1.3149993,3764.0,3763.9,3.1595]
[1753518732367,1.9727993,3764.0,3763.9,3.1595]
[1753518733069,1.3149993,3764.0,3763.9,3.1595]
[1753518733761,1.6114993,3764.0,3763.9,3.1595]
[1753518733967,3.2445993,3764.0,3763.9,3.1595]
[1753518735967,2.4608,3764.0,3763.9,3.1595]
[1753518737166,2.7885,3764.0,3763.9,2.6059]
[1753518737371,2.7885,3764.0,3763.9,0.5909]
[1753518737673,1.77672,3763.9,3763.8,0.1966072]
[1753518737874,2.78852,3763.9,3763.8,0.7875072]
[1753518738378,3.57524738,3763.9,3763.8,0.7875072]
[1753518738671,3.82861781,3763.9,3763.8,0.7875072]
[1753518738975,3.82861781,3763.9,3763.8,1.5779072]
[1753518739277,3.82861781,3763.9,3763.5,0.5536]
[1753518739278,1.77676,3763.6,3763.5,2.5686]
[1753518739578,3.79518738,3763.6,3763.5,2.5686]
[1753518739876,3.37461,3763.2,3763.1,4.986]
[1753518740174,3.61373738,3763.2,3763.1,4.986]
[1753518740471,4.16133738,3763.2,3763.1,1.7782]
[1753518740777,3.37467,3762.8,3762.7,1.2246]